bitfinex-derivatives/quotes_SOLF0:USTF0_20250101
["timestamp","ask_amount","ask_price","bid_price","bid_amount"]
[1735765946280,8.17723454,194.09,194.04,5.5618]
[1735765946475,2.5813,194.08,194.04,2.98]
[1735765946681,8.17723454,194.07,194.0,3.0908]
[1735765946875,8.17723454,194.05,194.01,2.98]
[1735765947081,8.17723454,194.05,194.01,5.5621]
[1735765948076,8.17723454,194.05,194.01,2.5821]
[1735765948273,8.17723454,194.05,194.01,5.5621]
[1735765948474,8.17723454,194.05,194.02,2.582]
[1735765948680,2.5816,194.06,194.02,2.582]
[1735765948978,10.75863454,194.07,194.02,2.582]
[1735765949679,10.75863454,194.07,194.01,11.15723454]
[1735765949680,8.17723454,194.07,194.03,2.5819]
[1735765949982,8.17723454,194.09,194.01,11.15723454]
[1735765950383,8.17723454,194.09,194.05,2.5815]
[1735765950773,8.17723454,194.09,194.03,8.17723454]
[1735765952180,10.75823454,194.11,194.07,2.5814]
[1735765952378,8.17723454,194.11,194.07,2.5814]
[1735765953477,10.75813454,194.11,194.07,2.5814]
[1735765954777,58.45427303,194.2,194.08,2.5811]
[1735765954982,8.17723454,194.12,194.06,2.98]
[1735765956491,8.17723454,194.12,194.08,2.5812]
[1735765959597,8.17723454,194.12,194.06,2.98]
[1735765959796,10.75793454,194.12,194.07,2.5814]
[1735765959997,8.17723454,194.1,194.07,2.5814]
[1735765961300,2.5802,194.16,194.1,2.5809]
[1735765961594,8.17723454,194.14,194.07,8.17723454]
[1735765961798,8.17723454,194.15,194.09,8.17723454]
[1735765962000,8.17723454,194.15,194.12,2.5807]
[1735765962196,8.17723454,194.15,194.11,2.98]
[1735765962396,8.17723454,194.17,194.15,2.5803]
[1735765963203,8.17723454,194.19,194.15,2.5803]
[1735765963403,8.17723454,194.19,194.13,8.17723454]
[1735765963604,8.17723454,194.19,194.16,2.5802]
[1735765963804,66.6286714,194.21,194.13,8.17723454]
[1735765965001,66.6286714,194.21,194.16,2.5801]
[1735765965403,66.6286714,194.21,194.16,2.98]
[1735765965607,8.17723454,194.21,194.16,2.98]
[1735765966106,8.17723454,194.23,194.17,8.17723454]
[1735765966406,8.17723454,194.23,194.19,2.5798]
[1735765966607,57.35805382,194.29,194.17,11.14633454]
[1735765966808,8.17723454,194.22,194.17,11.14633454]
[1735765967401,8.17723454,194.22,194.19,2.5798]
[1735765968202,8.17723454,194.22,194.18,2.5799]
[1735765970004,8.17723454,194.22,194.19,2.5798]
[1735765970903,10.75663454,194.22,194.17,5.549]
[1735765971205,8.17723454,194.2,194.17,2.98]
[1735765971911,8.17723454,194.2,194.15,2.98]
[1735765973409,10.75693454,194.2,194.15,5.5603]
[1735765976814,10.75693454,194.2,194.16,2.5802]
[1735765977509,8.17723454,194.22,194.17,8.17723454]
[1735765977716,8.17723454,194.24,194.17,8.17723454]
[1735765977912,10.75643454,194.24,194.19,2.5797]
[1735765979007,2.5793,194.23,194.19,2.5797]
[1735765979313,8.17723454,194.22,194.19,2.5797]
[1735765980711,8.17723454,194.22,194.17,8.17723454]
[1735765980915,10.75663454,194.22,194.16,4.5584]
[1735765981113,8.17723454,194.2,194.16,1.5084]
[1735765981418,8.17723454,194.18,194.15,2.98]
[1735765981818,10.75693454,194.2,194.15,5.5602]
[1735765982414,2.5799,194.19,194.15,5.5602]
[1735765982616,8.17723454,194.18,194.15,2.98]
[1735765982916,8.17723454,194.18,194.13,2.98]
[1735765983117,8.17723454,194.18,194.11,8.17723454]
[1735765983316,8.17723454,194.16,194.08,1.4914]
[1735765983519,1.5239,194.23,194.08,1.4914]
[1735765983520,8.17723454,194.14,194.09,2.98]
[1735765984118,2.58,194.18,194.12,2.5806]
[1735765984322,10.75723454,194.18,194.12,2.5806]
[1735765984817,10.75723454,194.18,194.13,2.5806]
[1735765985015,8.17723454,194.18,194.11,8.17723454]
[1735765985215,8.17723454,194.2,194.13,8.17723454]
[1735765985417,8.17723454,194.2,194.14,2.98]
[1735765986420,8.17723454,194.2,194.16,2.5802]
[1735765986915,8.17723454,194.2,194.14,2.98]
[1735765987118,10.75693454,194.2,194.14,2.98]
[1735765987511,8.17723454,194.2,194.16,2.5802]
[1735765987716,8.17723454,194.2,194.14,2.98]
[1735765988316,8.17723454,194.2,194.15,2.5802]
[1735765989818,8.17723454,194.2,194.16,2.5802]
[1735765990419,8.17723454,194.22,194.17,2.58]
[1735765991221,2.5799,194.19,194.14,5.5605]
[1735765991724,8.17723454,194.2,194.16,2.5802]
[1735765993017,10.75693454,194.2,194.16,2.5802]
[1735765993218,8.17723454,194.18,194.15,2.98]
[1735765993418,8.17723454,194.18,194.13,2.98]
[1735765994326,10.75723454,194.18,194.13,5.5606]
[1735765994522,10.75723454,194.18,194.13,2.98]
[1735765995519,10.75723454,194.18,194.14,2.5805]
[1735765995925,8.17723454,194.18,194.15,2.5803]
[1735765996224,8.17723454,194.2,194.13,11.15723454]
[1735765996425,61.41576233,194.26,194.13,11.15723454]
[1735765996724,8.17723454,194.21,194.13,11.15723454]
[1735765997319,8.17723454,194.19,194.13,11.15723454]
[1735765998422,8.17723454,194.19,194.15,2.5803]
[1735765999524,8.17723454,194.19,194.16,2.5802]
[1735766000718,8.17723454,194.19,194.13,11.15723454]
[1735766000920,8.17723454,194.19,194.15,2.5803]
[1735766001120,10.75703454,194.19,194.15,2.5803]
[1735766001918,8.17723454,194.19,194.13,2.98]
[1735766002125,10.75683454,194.21,194.14,8.17723454]
[1735766002336,8.17723454,194.21,194.14,8.17723454]
[1735766002520,8.17723454,194.21,194.16,8.17723454]
[1735766003419,8.17723454,194.21,194.14,8.17723454]
[1735766004525,8.17723454,194.21,194.17,2.58]
[1735766005826,8.17723454,194.21,194.14,8.17723454]
[1735766006023,8.17723454,194.21,194.16,2.5802]
[1735766007525,2.5797,194.2,194.16,2.5802]
[1735766007929,8.17723454,194.21,194.16,2.5802]
[1735766008126,10.75683454,194.21,194.16,2.5802]
[1735766011229,10.75683454,194.21,194.17,2.5801]
[1735766011431,8.17723454,194.21,194.13,11.15723454]
[1735766011627,8.17723454,194.21,194.15,8.17723454]
[1735766012231,8.17723454,194.21,194.16,4.92468665]
[1735766012532,8.17723454,194.21,194.18,2.5799]
[1735766015035,8.17723454,194.21,194.19,2.5797]
[1735766016323,2.46103585,194.27,194.19,8.17723454]
[1735766016533,10.63827039,194.27,194.21,8.17723454]
[1735766017330,8.17723454,194.27,194.24,2.579]
[1735766021254,8.17723454,194.27,194.23,2.98]
[1735766021647,8.17723454,194.25,194.19,3.0593]
[1735766021851,2.5793,194.24,194.2,2.98]
[1735766022455,2.5793,194.24,194.19,2.98]
[1735766022856,2.5793,194.24,194.19,13.73693454]
[1735766023250,2.579,194.25,194.19,11.15723454]
[1735766024556,2.579,194.25,194.2,2.5796]
[1735766025154,2.579,194.25,194.21,2.98]
[1735766025955,2.5788,194.27,194.22,2.5794]
[1735766026157,8.17723454,194.28,194.21,11.15723454]
[1735766026856,8.17723454,194.26,194.21,2.98]
[1735766027652,8.17723454,194.28,194.21,2.98]
[1735766028458,2.5789,194.27,194.21,2.98]
[1735766029557,2.5789,194.27,194.23,2.5793]
[1735766030163,2.5789,194.27,194.23,5.5393]
[1735766030458,2.5789,194.27,194.23,2.5793]
[1735766030657,2.5789,194.26,194.22,5.5394]
[1735766031750,2.5789,194.26,194.23,2.5793]
[1735766034861,10.75593454,194.28,194.22,2.96]
[1735766035163,10.75593454,194.28,194.24,2.5791]
[1735766035365,8.17723454,194.28,194.24,2.5791]
[1735766035663,2.5788,194.27,194.23,2.5793]
[1735766036765,2.5788,194.27,194.24,2.5791]
[1735766037064,2.5786,194.28,194.24,2.5791]
[1735766040263,8.17723454,194.29,194.22,11.13723454]
[1735766040460,8.17723454,194.32,194.24,8.17723454]
[1735766040969,10.75543454,194.32,194.27,2.5786]
[1735766041660,8.17723454,194.32,194.28,2.5785]
[1735766041864,8.17723454,194.32,194.26,8.17723454]
[1735766042068,8.17723454,194.3,194.24,8.17723454]
[1735766042965,8.17723454,194.32,194.24,8.17723454]
[1735766043166,2.5784,194.3,194.26,2.5788]
[1735766044470,2.5782,194.31,194.27,2.5787]
[1735766045270,2.5782,194.31,194.26,2.5788]
[1735766046468,8.17723454,194.35,194.28,8.17723454]
[1735766047174,2.5779,194.34,194.28,8.17723454]
[1735766047973,2.5779,194.34,194.28,10.75573454]
[1735766048473,10.75523454,194.33,194.28,2.5785]
[1735766049378,2.5781,194.32,194.27,11.13723454]
[1735766050275,10.75523454,194.33,194.28,2.5785]
[1735766050468,2.578,194.33,194.27,11.13723454]
[1735766050670,110.20593744,194.39,194.31,8.17723454]
[1735766050868,110.20593744,194.39,194.34,2.5777]
[1735766050869,55.4282769,194.39,194.34,2.5777]
[1735766051072,52.8509769,194.39,194.35,8.17723454]
[1735766051772,57.35496054,194.4,194.35,8.17723454]
[1735766051976,57.35496054,194.4,194.37,8.17723454]
[1735766052381,57.35496054,194.4,194.38,2.5773]
[1735766052776,8.17723454,194.44,194.38,2.5773]
[1735766053577,10.75373454,194.44,194.38,2.5773]
[1735766054078,2.5765,194.44,194.37,8.17723454]
[1735766054280,2.9675,194.48,194.39,11.13723454]
[1735766054484,8.17723454,194.47,194.39,11.13723454]
[1735766054978,2.5764,194.46,194.41,8.17723454]
[1735766056581,2.5764,194.46,194.41,10.75423454]
[1735766057180,2.5766,194.45,194.41,8.17723454]
[1735766059278,2.5764,194.45,194.41,8.17723454]
[1735766063080,2.576,194.48,194.43,8.17723454]
[1735766064083,2.576,194.48,194.44,2.96]
[1735766065387,2.5761,194.47,194.44,2.96]
[1735766067884,8.17723454,194.47,194.35,4.4421]
[1735766068187,8.17723454,194.45,194.37,8.17723454]
[1735766069088,2.5768,194.42,194.37,10.75463454]
[1735766070085,2.5768,194.42,194.38,2.5773]
[1735766070789,10.75373454,194.45,194.4,2.577]
[1735766070983,2.5765,194.45,194.4,2.577]
[1735766071283,2.5765,194.45,194.41,11.13723454]
[1735766072778,8.17723454,194.47,194.41,11.13723454]
[1735766072982,2.5767,194.44,194.41,11.13723454]
[1735766073386,2.5767,194.44,194.41,2.96]
[1735766073581,8.17723454,194.47,194.39,8.17723454]
[1735766073890,8.17723454,194.43,194.38,2.96]
[1735766074980,2.5772,194.4,194.38,2.96]
[1735766075885,2.5772,194.4,194.37,8.17723454]
[1735766076189,8.17723454,194.41,194.35,14.10613454]
[1735766077093,2.5773,194.39,194.35,16.68383454]
[1735766077888,2.5773,194.39,194.35,11.13723454]
[1735766078090,2.5775,194.38,194.35,11.13723454]
[1735766078283,8.17723454,194.39,194.33,8.17723454]
[1735766078488,8.17723454,194.39,194.33,11.13723454]
[1735766078691,2.5778,194.35,194.33,2.96]
[1735766080892,2.5778,194.35,194.32,2.96]
[1735766081491,8.17723454,194.37,194.32,2.96]
[1735766081789,2.9698,194.44,194.32,2.96]
[1735766081790,2.5777,194.36,194.32,2.96]
[1735766082191,2.5777,194.36,194.32,5.5382]
[1735766083194,2.5777,194.36,194.32,2.96]
[1735766084495,2.578,194.34,194.3,8.17723454]
[1735766084692,2.578,194.34,194.3,11.13723454]
[1735766085386,2.578,194.34,194.3,8.17723454]
[1735766085586,2.5782,194.33,194.3,8.17723454]
[1735766085785,8.17723454,194.35,194.3,8.17723454]
[1735766085989,8.17723454,194.35,194.29,2.96]
[1735766086388,8.17723454,194.35,194.28,11.13723454]
[1735766086587,8.17723454,194.33,194.28,2.96]
[1735766086791,8.17723454,194.33,194.27,2.96]
[1735766086990,8.17723454,194.31,194.27,2.96]
[1735766088496,2.5786,194.3,194.27,2.96]
[1735766089402,2.5786,194.3,194.25,5.5391]
[1735766089801,2.5787,194.29,194.25,2.96]
[1735766089995,2.5787,194.29,194.24,13.71653454]
[1735766089996,8.17723454,194.29,194.24,13.71653454]
[1735766091111,8.17723454,194.29,194.22,3.076]
[1735766091309,8.17723454,194.29,194.23,2.96]
[1735766091500,8.17723454,194.27,194.2,8.17723454]
[1735766091700,8.17723454,194.27,194.21,2.96]
[1735766092006,2.5792,194.25,194.21,2.96]
[1735766092207,2.5792,194.25,194.2,10.75693454]
[1735766092510,8.17723454,194.27,194.2,11.13723454]
[1735766093510,2.5794,194.24,194.2,11.13723454]
[1735766094413,8.17723454,194.25,194.2,11.13723454]
[1735766095509,2.5793,194.24,194.2,11.13723454]
[1735766097813,8.17723454,194.25,194.2,11.13723454]
[1735766098015,2.5794,194.23,194.2,11.13723454]
[1735766098213,2.5794,194.23,194.2,2.96]
[1735766098407,2.5794,194.23,194.19,2.5799]
[1735766098607,2.5794,194.23,194.19,5.5399]
[1735766099514,8.17723454,194.25,194.19,2.96]
[1735766099715,2.96,194.3,194.2,8.17723454]
[1735766099916,8.17723454,194.27,194.2,8.17723454]
[1735766100219,2.5792,194.25,194.21,2.5796]
[1735766100615,2.5792,194.25,194.2,8.17723454]
[1735766101419,2.5792,194.25,194.2,10.75703454]
[1735766101916,2.5794,194.23,194.19,2.96]
[1735766102912,8.17723454,194.25,194.19,2.96]
[1735766104516,57.45233064,194.34,194.19,2.96]
[1735766104713,8.17723454,194.3,194.22,8.17723454]
[1735766104909,8.17723454,194.3,194.24,8.17723454]
[1735766105109,2.5786,194.29,194.24,11.13723454]
[1735766105620,2.5786,194.29,194.24,13.71643454]
[1735766105917,8.17723454,194.32,194.26,8.17723454]
[1735766106121,8.17723454,194.32,194.28,2.5787]
[1735766106321,8.17723454,194.32,194.26,8.17723454]
[1735766107517,10.75543454,194.32,194.27,2.5789]
[1735766107719,54.38333064,194.34,194.29,8.17723454]
[1735766108018,2.5781,194.34,194.29,11.13723454]
[1735766108218,1.4904,194.41,194.29,11.13723454]
[1735766108219,2.96,194.41,194.29,11.13723454]
[1735766108421,8.17723454,194.37,194.29,11.13723454]
[1735766108821,2.5778,194.35,194.3,2.5784]
[1735766109219,2.5778,194.35,194.31,8.17723454]
[1735766110323,10.75493454,194.37,194.32,2.5782]
[1735766110524,8.17723454,194.39,194.31,8.17723454]
[1735766110725,8.17723454,194.39,194.33,8.17723454]
[1735766110927,8.17723454,194.39,194.34,2.96]
[1735766111419,2.5776,194.38,194.34,2.96]
[1735766111624,8.17723454,194.39,194.34,2.96]
[1735766112529,2.5776,194.37,194.34,2.96]
[1735766114126,2.5777,194.36,194.34,2.96]
[1735766114327,8.17723454,194.37,194.34,2.96]
[1735766114628,2.5777,194.36,194.34,2.96]
[1735766114926,8.17723454,194.37,194.34,2.96]
[1735766115127,8.17723454,194.39,194.34,2.96]
[1735766116428,2.5777,194.37,194.34,2.96]
[1735766117828,8.17723454,194.39,194.34,2.96]
[1735766118127,2.5777,194.36,194.34,2.96]
[1735766119529,8.17723454,194.39,194.34,2.96]
[1735766120125,2.5766,194.44,194.35,2.5778]
[1735766120430,8.17723454,194.42,194.35,10.75503454]
[1735766121132,2.5772,194.4,194.35,10.75503454]
[1735766122025,10.75423454,194.42,194.37,2.5775]
[1735766122222,10.75423454,194.42,194.37,10.75473454]
[1735766123922,10.75423454,194.42,194.37,8.17723454]
[1735766124129,10.75423454,194.42,194.38,2.5774]
[1735766124629,3.74225429,194.5,194.4,2.5771]
[1735766124831,8.17723454,194.46,194.41,2.96]
[1735766125333,10.75373454,194.46,194.41,2.96]
[1735766125535,2.5765,194.46,194.41,2.96]
[1735766125735,8.17723454,194.47,194.41,2.96]
[1735766125931,2.25345429,194.5,194.41,11.13723454]
[1735766126127,8.17723454,194.48,194.41,11.13723454]
[1735766126929,2.5763,194.47,194.43,8.17723454]
[1735766128029,8.17723454,194.49,194.43,8.17723454]
[1735766128234,2.5761,194.48,194.44,2.5765]
[1735766130739,2.5761,194.48,194.43,10.75393454]
[1735766130931,2.5762,194.47,194.43,10.75393454]
[1735766132735,8.17723454,194.47,194.41,4.5637]
[1735766133138,2.5766,194.45,194.41,4.5637]
[1735766134639,2.5766,194.44,194.41,4.5637]
[1735766136541,2.5766,194.44,194.4,14.28793454]
[1735766137740,8.17723454,194.44,194.38,8.17723454]
[1735766138541,2.96,194.5,194.38,8.17723454]
[1735766138742,8.17723454,194.45,194.38,8.17723454]
[1735766138937,2.96,194.5,194.4,8.17723454]
[1735766139338,8.17723454,194.47,194.4,8.17723454]
[1735766139936,2.96,194.5,194.42,8.17723454]
[1735766140141,2.96,194.5,194.42,11.13723454]
[1735766140142,8.17723454,194.49,194.42,11.13723454]
[1735766140342,8.17723454,194.49,194.44,8.17723454]
[1735766140938,2.5761,194.48,194.44,10.75373454]
[1735766141541,2.5757,194.51,194.46,2.5763]
[1735766141743,10.75293454,194.51,194.46,2.5763]
[1735766142047,2.5757,194.51,194.47,2.5762]
[1735766142243,2.5757,194.51,194.47,5.5362]
[1735766142544,2.5757,194.51,194.47,2.96]
[1735766144443,2.5757,194.51,194.47,5.5362]
[1735766144642,2.5751,194.56,194.5,8.17723454]
[1735766145341,2.5752,194.55,194.5,10.75303454]
[1735766145740,8.17723454,194.55,194.47,11.13723454]
[1735766145936,8.17723454,194.53,194.47,11.13723454]
[1735766146143,2.5756,194.52,194.47,13.71343454]
[1735766146546,8.17723454,194.55,194.47,11.13723454]
[1735766146842,2.5754,194.54,194.49,10.75313454]
[1735766149149,110.91496054,194.67,194.53,8.17723454]
[1735766149150,8.17723454,194.62,194.53,8.17723454]
[1735766149447,8.17723454,194.62,194.56,8.17723454]
[1735766149647,8.17723454,194.62,194.57,2.96]
[1735766149848,10.75153454,194.62,194.57,2.96]
[1735766150443,4.4782,194.7,194.57,2.96]
[1735766150749,8.17723454,194.63,194.57,2.96]
[1735766153245,8.17723454,194.67,194.6,8.17723454]
[1735766155145,2.96,194.75,194.62,2.5741]
[1735766155344,8.17723454,194.71,194.64,8.17723454]
[1735766155540,8.17723454,194.71,194.65,2.96]
[1735766156949,4.5868,194.79,194.65,2.96]
[1735766157248,8.17723454,194.72,194.66,8.17723454]
[1735766160453,4.5868,194.79,194.66,8.17723454]
[1735766160651,8.17723454,194.73,194.67,2.5735]
[1735766161051,8.17723454,194.73,194.66,10.75093454]
[1735766161353,8.17723454,194.73,194.66,8.17723454]
[1735766162752,8.17723454,194.73,194.68,8.17723454]
[1735766166353,8.17723454,194.73,194.66,8.17723454]
[1735766167158,8.17723454,194.73,194.67,2.96]
[1735766167357,4.5868,194.79,194.68,8.17723454]
[1735766167661,3.1025,194.79,194.7,8.17723454]
[1735766167858,8.17723454,194.78,194.71,2.573]
[1735766168058,4.63843195,194.81,194.72,2.96]
[1735766168259,8.17723454,194.79,194.73,8.17723454]
[1735766168863,53.32178014,194.83,194.73,8.17723454]
[1735766168864,50.36178014,194.83,194.73,8.17723454]
[1735766169055,8.17723454,194.79,194.73,8.17723454]
[1735766169656,8.17723454,194.81,194.73,8.17723454]
[1735766170154,8.17723454,194.79,194.72,2.96]
[1735766170359,8.17723454,194.77,194.72,2.96]
[1735766171556,8.17723454,194.77,194.71,8.17723454]
[1735766171756,8.17723454,194.77,194.73,2.96]
[1735766172263,8.17723454,194.77,194.7,2.5732]
[1735766172558,8.17723454,194.77,194.73,2.96]
[1735766176364,8.17723454,194.77,194.7,8.17723454]
[1735766176562,8.17723454,194.77,194.71,2.96]
[1735766177161,8.17723454,194.77,194.72,2.96]
[1735766178463,8.17723454,194.75,194.72,2.96]
[1735766178762,8.17723454,194.75,194.69,2.96]
[1735766179770,8.17723454,194.71,194.67,2.96]
[1735766179964,8.17723454,194.71,194.65,2.96]
[1735766180661,2.96,194.82,194.67,8.17723454]
[1735766180866,8.17723454,194.77,194.69,8.17723454]
[1735766181068,8.17723454,194.77,194.7,2.96]
[1735766181365,4.4604,194.82,194.71,8.17723454]
[1735766181366,8.17723454,194.79,194.71,8.17723454]
[1735766182161,4.4604,194.82,194.73,8.17723454]
[1735766182363,51.94888014,194.83,194.73,8.17723454]
[1735766182668,8.17723454,194.82,194.73,8.17723454]
[1735766183372,8.17723454,194.82,194.73,10.75003454]
[1735766183967,8.17723454,194.8,194.73,8.17723454]
[1735766185064,8.17723454,194.8,194.72,2.5729]
[1735766185270,8.17723454,194.77,194.72,2.96]
[1735766187569,8.17723454,194.79,194.73,8.17723454]
[1735766187876,8.17723454,194.81,194.75,8.17723454]
[1735766191479,8.17723454,194.81,194.73,8.17723454]
[1735766192677,8.17723454,194.81,194.75,8.17723454]
[1735766192879,10.47348317,194.85,194.78,8.17723454]
[1735766193076,2.29624863,194.85,194.79,2.96]
[1735766193279,10.47348317,194.85,194.79,2.96]
[1735766197283,8.17723454,194.84,194.79,2.96]
[1735766203083,8.17723454,194.82,194.79,2.96]
[1735766203486,8.17723454,194.8,194.75,2.96]
[1735766203988,8.17723454,194.8,194.72,9.71013454]
[1735766204286,8.17723454,194.8,194.73,2.96]
[1735766204486,8.17723454,194.78,194.73,2.96]
[1735766207082,8.17723454,194.8,194.73,2.96]
[1735766207483,8.17723454,194.8,194.74,2.96]
[1735766212590,8.17723454,194.78,194.72,2.96]
[1735766213695,57.35496054,194.82,194.72,2.96]
[1735766213886,8.17723454,194.78,194.72,2.96]
[1735766216991,8.17723454,194.78,194.71,8.17723454]
[1735766217296,8.17723454,194.78,194.72,2.96]
[1735766219893,8.17723454,194.79,194.72,2.96]
[1735766220786,2.96,194.81,194.62,2.9795]
[1735766221093,8.17723454,194.73,194.65,8.17723454]
[1735766221692,8.17723454,194.73,194.66,2.96]
[1735766222091,8.17723454,194.73,194.67,8.17723454]
[1735766222289,8.17723454,194.73,194.67,11.13723454]
[1735766222893,8.17723454,194.73,194.67,2.96]
[1735766225004,8.17723454,194.73,194.65,10.75103454]
[1735766225191,8.17723454,194.73,194.66,2.96]
[1735766226998,8.17723454,194.67,194.6,1.4775]
[1735766227194,8.17723454,194.67,194.6,9.65473454]
[1735766227398,8.17723454,194.65,194.6,2.96]
[1735766228796,8.17723454,194.65,194.59,8.17723454]
[1735766229001,8.17723454,194.63,194.58,2.96]
[1735766229400,8.17723454,194.63,194.57,8.17723454]
[1735766229600,8.17723454,194.63,194.57,11.13723454]
[1735766234398,8.17723454,194.63,194.56,2.96]
[1735766234605,8.17723454,194.61,194.54,2.96]
[1735766234900,8.17723454,194.59,194.53,8.17723454]
[1735766236305,8.17723454,194.57,194.46,4.7328]
[1735766236505,8.17723454,194.55,194.48,8.17723454]
[1735766236703,8.17723454,194.55,194.46,3.1578]
[1735766237007,8.17723454,194.55,194.47,11.13723454]
[1735766237603,8.17723454,194.53,194.47,11.13723454]
[1735766238209,8.17723454,194.53,194.47,8.17723454]
[1735766240205,8.17723454,194.53,194.45,8.17723454]
[1735766240712,8.17723454,194.55,194.47,8.17723454]
[1735766241004,8.17723454,194.58,194.51,8.17723454]
[1735766241211,8.17723454,194.58,194.51,11.13723454]
[1735766241603,8.17723454,194.58,194.51,13.71293454]
[1735766243811,8.17723454,194.58,194.51,11.13723454]
[1735766244211,8.17723454,194.54,194.49,8.17723454]
[1735766245307,8.17723454,194.54,194.47,8.17723454]
[1735766247514,8.17723454,194.52,194.43,4.1001]
[1735766247704,8.17723454,194.52,194.44,2.96]
[1735766247907,8.17723454,194.52,194.45,8.17723454]
[1735766249614,4.5581,194.6,194.48,2.576]
[1735766249809,8.17723454,194.54,194.48,2.576]
[1735766251418,2.96,194.6,194.49,13.71313454]
[1735766251619,8.17723454,194.56,194.49,13.71313454]
[1735766253121,8.17723454,194.56,194.49,11.13723454]
[1735766258523,2.96,194.6,194.51,8.17723454]
[1735766258723,8.17723454,194.58,194.51,8.17723454]
[1735766260819,8.17723454,194.58,194.51,10.75283454]
[1735766262523,8.17723454,194.58,194.51,8.17723454]
[1735766262724,8.17723454,194.58,194.52,2.5755]
[1735766263024,8.17723454,194.58,194.51,8.17723454]
[1735766263025,8.17723454,194.62,194.55,8.17723454]
[1735766263221,8.17723454,194.62,194.57,8.17723454]
[1735766263420,8.17723454,194.62,194.57,11.13723454]
[1735766264029,8.17723454,194.65,194.59,10.75183454]
[1735766264425,2.96,194.7,194.59,10.75183454]
[1735766264622,8.17723454,194.66,194.59,10.75183454]
[1735766267224,8.17723454,194.66,194.6,2.5744]
[1735766267428,8.17723454,194.68,194.61,8.17723454]
[1735766267630,8.17723454,194.7,194.63,8.17723454]
[1735766270320,8.17723454,194.68,194.63,8.17723454]
[1735766274635,2.96,194.73,194.63,8.17723454]
[1735766274932,8.17723454,194.69,194.63,8.17723454]
[1735766279631,2.96,194.73,194.63,8.17723454]
[1735766279930,8.17723454,194.69,194.63,8.17723454]
[1735766284635,8.17723454,194.71,194.65,8.17723454]
[1735766284838,8.17723454,194.71,194.65,10.75103454]
[1735766285038,8.17723454,194.75,194.67,8.17723454]
[1735766285238,8.17723454,194.75,194.68,2.5735]
[1735766285441,8.17723454,194.73,194.62,2.96]
[1735766285636,8.17723454,194.71,194.65,8.17723454]
[1735766285942,8.17723454,194.69,194.64,8.17723454]
[1735766286434,4.5587,194.76,194.64,8.17723454]
[1735766286435,8.17723454,194.7,194.64,8.17723454]
[1735766288737,8.17723454,194.7,194.62,2.96]
[1735766288738,4.5587,194.76,194.66,8.17723454]
[1735766288939,8.17723454,194.73,194.66,8.17723454]
[1735766289140,4.5587,194.76,194.66,8.17723454]
[1735766289344,8.17723454,194.74,194.66,8.17723454]
[1735766289740,4.5587,194.76,194.65,8.17723454]
[1735766289937,8.17723454,194.72,194.65,8.17723454]
[1735766291447,8.17723454,194.72,194.65,10.75103454]
[1735766291845,1.5987,194.76,194.65,8.17723454]
[1735766292045,8.17723454,194.73,194.67,2.5736]
[1735766294148,8.17723454,194.73,194.65,8.17723454]
[1735766295550,8.17723454,194.73,194.65,10.75103454]
[1735766295952,8.17723454,194.73,194.66,2.5737]
[1735766296148,8.17723454,194.73,194.65,8.17723454]
[1735766296552,8.17723454,194.73,194.66,2.5737]
[1735766297848,8.17723454,194.73,194.65,8.17723454]
[1735766298050,8.17723454,194.73,194.65,10.75093454]
[1735766298552,8.17723454,194.73,194.67,8.17723454]
[1735766304558,8.17723454,194.71,194.65,2.5738]
[1735766304753,8.17723454,194.67,194.59,2.96]
[1735766304950,8.17723454,194.67,194.61,8.17723454]
[1735766305157,8.17723454,194.67,194.61,10.75163454]
[1735766306256,8.17723454,194.67,194.59,11.13723454]
[1735766306453,8.17723454,194.65,194.59,11.13723454]
[1735766306859,8.17723454,194.65,194.59,8.17723454]
[1735766311964,8.17723454,194.65,194.59,10.75193454]
[1735766314259,8.17723454,194.65,194.6,2.5745]
[1735766314463,8.17723454,194.67,194.6,2.5745]
[1735766314964,8.17723454,194.67,194.62,2.5742]
[1735766315165,8.17723454,194.7,194.63,11.13723454]
[1735766315963,8.17723454,194.7,194.65,2.5739]
[1735766317472,8.17723454,194.7,194.63,11.13723454]
[1735766318271,8.17723454,194.72,194.65,8.17723454]
[1735766318468,8.17723454,194.72,194.67,8.17723454]
[1735766318966,8.17723454,194.72,194.67,10.75073454]